fUSD/lending_fUSD_20240319
["ID","MTS","AMOUNT","RATE_DAILY","PERIOD"]
[319614872,1710889885165,-1410.4,0.00032602,2]
[319614873,1710889885174,-500.0,0.00032602,2]
[319614874,1710889885183,-1698.2,0.00032602,2]
[319614875,1710889885192,-566.59,0.00032602,2]
[319614876,1710889885201,-618.74,0.00032602,2]
[319614877,1710889885211,-500.0,0.00032602,2]
[319614878,1710889885225,-500.0,0.00032602,2]
[319614879,1710889885234,-300.0,0.00032602,2]
[319614880,1710889885242,-500.0,0.00032602,2]
[319614881,1710889885251,-401.70239451,0.00032602,2]
[319614882,1710889885261,-4353.24,0.00032602,2]
[319614883,1710889885270,-500.0,0.00032602,2]
[319614884,1710889885279,-267.1994121,0.00032602,2]
[319614885,1710889885288,-7073.81,0.00032602,2]
[319614886,1710889885297,-500.0,0.00032602,2]
[319614887,1710889885305,-522.69,0.00032602,2]
[319614888,1710889885314,-500.0,0.00032602,2]
[319614889,1710889885323,-928.93,0.00032602,2]
[319614890,1710889885332,-500.0,0.00032602,2]
[319614891,1710889885342,-811.39,0.00032602,2]
[319614892,1710889885351,-1038.54,0.00032602,2]
[319614893,1710889885360,-4631.2,0.00032602,2]
[319614894,1710889885370,-500.0,0.00032602,2]
[319614895,1710889885380,-1456.54,0.00032602,2]
[319614896,1710889885390,-871.05,0.00032602,2]
[319614897,1710889885399,-1056.59,0.00032602,2]
[319614898,1710889885408,-537.22,0.00032602,2]
[319614899,1710889885418,-577.21036255,0.00032602,2]
[319614900,1710889885427,-500.0,0.00032602,2]
[319614901,1710889885437,-500.0,0.00032602,2]
[319614902,1710889885446,-524.13,0.00032602,2]
[319614903,1710889885456,-2348.88,0.00032602,2]
[319614904,1710889885468,-515.48,0.00032602,2]
[319614905,1710889885478,-500.0,0.00032602,2]
[319614906,1710889885487,-500.0,0.00032602,2]
[319614907,1710889885497,-853.27,0.00032602,2]
[319614908,1710889885507,-1115.49,0.00032602,2]
[319614909,1710889885517,-971.85,0.00032602,2]
[319614910,1710889885527,-543.38,0.00032602,2]
[319614911,1710889885536,-2831.03,0.00032602,2]
[319614912,1710889885546,-1184.24,0.00032602,2]
[319614913,1710889885556,-979.33,0.00032602,2]
[319614914,1710889885566,-1727.5,0.00032602,2]
[319614915,1710889885575,-500.0,0.00032602,2]
[319614916,1710889885584,-500.0,0.00032602,2]
[319614917,1710889885594,-500.0,0.00032602,2]
[319614918,1710889885604,-500.0,0.00032602,2]
[319614919,1710889885613,-522.77,0.00032602,2]
[319614920,1710889885623,-766.46,0.00032602,2]
[319614921,1710889885633,-690.56,0.00032602,2]
[319614922,1710889885643,-500.0,0.00032602,2]
[319614923,1710889885653,-817.88,0.00032602,2]
[319614924,1710889885662,-500.0,0.00032602,2]
[319614925,1710889885672,-4845.95,0.00032602,2]
[319614926,1710889885682,-556.39,0.00032602,2]
[319614927,1710889885691,-4803.55,0.00032602,2]
[319614928,1710889885700,-500.0,0.00032602,2]
[319614929,1710889885710,-500.0,0.00032602,2]
[319614930,1710889885722,-500.0,0.00032602,2]
[319614931,1710889885732,-500.0,0.00032602,2]
[319614932,1710889885743,-34103.85,0.00032602,2]
[319614933,1710889885753,-1080.43,0.00032602,2]
[319614934,1710889885762,-1942.23,0.00032602,2]
[319614935,1710889885772,-3482.12,0.00032602,2]
[319614936,1710889885782,-1812.24,0.00032602,2]
[319614937,1710889885791,-670.6,0.00032602,2]
[319614938,1710889885801,-500.0,0.00032602,2]
[319614939,1710889885811,-600.36,0.00032602,2]
[319614940,1710889885821,-500.0,0.00032602,2]
[319614941,1710889885831,-500.0,0.00032602,2]
[319614942,1710889885840,-500.0,0.00032602,2]
[319614943,1710889885850,-862.6,0.00032602,2]
[319614944,1710889885860,-4330.62,0.00032602,2]
[319614945,1710889885873,-876.81,0.00032602,2]
[319614946,1710889885883,-3516.45,0.00032602,2]
[319614947,1710889885893,-628.68,0.00032602,2]
[319614948,1710889885903,-500.0,0.00032602,2]
[319614949,1710889885912,-728.13,0.00032602,2]
[319614950,1710889885923,-500.0,0.00032602,2]
[319614951,1710889885932,-898.81,0.00032602,2]
[319614952,1710889885942,-12216.87,0.00032602,2]
[319614953,1710889885952,-518.77,0.00032602,2]
[319614954,1710889885962,-500.0,0.00032602,2]
[319614955,1710889885974,-2145.43,0.00032602,2]
[319614956,1710889885985,-500.0,0.00032602,2]
[319614957,1710889885994,-535.35,0.00032602,2]
[319614958,1710889886004,-2312.93,0.00032602,2]
[319614959,1710889886013,-500.0,0.00032602,2]
[319614960,1710889886023,-500.0,0.00032602,2]
[319614961,1710889886032,-555.13,0.00032602,2]
[319614962,1710889886042,-500.0,0.00032602,2]
[319614963,1710889886051,-500.0,0.00032602,2]
[319614964,1710889886060,-901.75,0.00032602,2]
[319614965,1710889886070,-2237.89,0.00032602,2]
[319614966,1710889886079,-500.0,0.00032602,2]
[319614967,1710889886088,-1754.94,0.00032602,2]
[319614968,1710889886098,-500.0,0.00032602,2]
[319614969,1710889886107,-2222.53,0.00032602,2]
[319614970,1710889886117,-693.88,0.00032602,2]
[319614971,1710889886127,-474.11314212,0.00032602,2]
[319614972,1710889886136,-200.0,0.00032613,2]
[319614973,1710889886146,-207.0,0.0003284,2]
[319614974,1710889886155,-500.0,0.00032876,2]
[319614975,1710889886165,-808.57,0.00032876,2]
[319614976,1710889886174,-500.0,0.00032876,2]
[319614977,1710889886183,-739.62,0.00032876,2]
[319614978,1710889886192,-770.01,0.00032876,2]
[319614979,1710889886201,-706.97,0.00032876,2]
[319614980,1710889886210,-500.0,0.00032876,2]
[319614981,1710889886222,-500.0,0.00032876,2]
[319614982,1710889886231,-511.65966584,0.00032876,2]
[319614983,1710889886241,-1912.51,0.00032876,2]
[319614984,1710889886249,-500.0,0.00032876,2]
[319614985,1710889886258,-1956.9,0.00032876,2]
[319614986,1710889886267,-500.0,0.00032876,2]
[319614987,1710889886276,-500.0,0.00032876,2]
[319614988,1710889886286,-625.35,0.00032876,2]
[319614989,1710889886295,-2737.91,0.00032876,2]
[319614990,1710889886304,-500.0,0.00032876,2]
[319614991,1710889886313,-727.13,0.00032876,2]
[319614992,1710889886322,-421.61202925,0.00032876,2]
[319614993,1710889886331,-500.0,0.00032876,2]
[319614994,1710889886340,-969.84,0.00032876,2]
[319614995,1710889886349,-500.0,0.00032876,2]
[319614996,1710889886359,-1547.97,0.00032876,2]
[319614997,1710889886369,-500.0,0.00032876,2]
[319614998,1710889886379,-500.0,0.00032876,2]
[319614999,1710889886389,-500.0,0.00032876,2]
[319615000,1710889886400,-500.0,0.00032876,2]
[319615001,1710889886410,-500.0,0.00032876,2]
[319615002,1710889886419,-500.0,0.00032876,2]
[319615003,1710889886428,-500.0,0.00032876,2]
[319615004,1710889886437,-771.88,0.00032876,2]
[319615005,1710889886446,-500.0,0.00032876,2]
[319615006,1710889886456,-500.0,0.00032876,2]
[319615007,1710889886471,-500.0,0.00032876,2]
[319615008,1710889886480,-1734.35,0.00032876,2]
[319615009,1710889886491,-500.0,0.00032876,2]
[319615010,1710889886500,-1362.64,0.00032876,2]
[319615011,1710889886510,-500.0,0.00032876,2]
[319615012,1710889886520,-277.97919406,0.00032876,2]
[319615013,1710889886530,-799.5,0.00032876,2]
[319615014,1710889886539,-500.0,0.00032876,2]
[319615015,1710889886550,-500.0,0.00032876,2]
[319615016,1710889886561,-500.0,0.00032876,2]
[319615017,1710889886570,-506.51,0.00032876,2]
[319615018,1710889886581,-303.74898151,0.00032876,2]
[319615019,1710889886591,-500.0,0.00032876,2]
[319615020,1710889886605,-962.3,0.00032876,2]
[319615021,1710889886615,-154.03435749,0.00032876,2]
[319615022,1710889886625,-500.0,0.00032876,2]
[319615023,1710889886635,-500.0,0.00032876,2]
[319615024,1710889886645,-406.8722735,0.00032876,2]
[319615025,1710889886655,-500.0,0.00032876,2]
[319615026,1710889886665,-500.0,0.00032876,2]
[319615027,1710889886676,-738.08,0.00032876,2]
[319615028,1710889886685,-500.0,0.00032876,2]
[319615029,1710889886695,-500.0,0.00032876,2]
[319615030,1710889886705,-500.0,0.00032876,2]
[319615031,1710889886717,-500.0,0.00032876,2]
[319615032,1710889886726,-3065.96,0.00032876,2]
[319615033,1710889886736,-500.0,0.00032876,2]
[319615034,1710889886745,-527.83,0.00032876,2]
[319615035,1710889886755,-1402.94,0.00032876,2]
[319615036,1710889886764,-863.28,0.00032876,2]
[319615037,1710889886774,-170.50534572,0.00032876,2]
[319615038,1710889886783,-509.57,0.00032876,2]
[319615039,1710889886793,-816.49,0.00032876,2]
[319615040,1710889886802,-546.0,0.00032876,2]
[319615041,1710889886812,-500.0,0.00032876,2]
[319615042,1710889886821,-500.0,0.00032876,2]
[319615043,1710889886831,-1467.71,0.00032876,2]
[319615044,1710889886840,-10090.18,0.00032876,2]
[319615045,1710889886849,-500.0,0.00032876,2]
[319615046,1710889886859,-500.0,0.00032876,2]
[319615047,1710889886868,-500.0,0.00032876,2]
[319615048,1710889886881,-2448.69,0.00032876,2]
[319615049,1710889886890,-500.0,0.00032876,2]
[319615050,1710889886899,-376.62661809,0.00032876,2]
[319615051,1710889886908,-1832.0,0.00032876,2]
[319615052,1710889886918,-1702.82,0.00032876,2]
[319615053,1710889886927,-500.0,0.00032876,2]
[319615054,1710889886936,-500.0,0.00032876,2]
[319615055,1710889886945,-576.68,0.00032876,2]
[319615056,1710889886955,-500.0,0.00032876,2]
[319615057,1710889886966,-550.72,0.00032876,2]
[319615058,1710889886976,-1410.4,0.00032876,2]
[319615059,1710889886986,-500.0,0.00032876,2]
[319615060,1710889886995,-1698.2,0.00032876,2]
[319615061,1710889887005,-566.59,0.00032876,2]
[319615062,1710889887015,-618.74,0.00032876,2]
[319615063,1710889887026,-500.0,0.00032876,2]
[319615064,1710889887036,-461.04985703,0.00032876,2]
[319615065,1710889887046,-500.0,0.00032876,2]
[319615066,1710889887056,-4353.24,0.00032876,2]
[319615067,1710889887070,-500.0,0.00032876,2]
[319615068,1710889887081,-7073.81,0.00032876,2]
[319615069,1710889887090,-500.0,0.00032876,2]
[319615070,1710889887100,-522.69,0.00032876,2]
[319615071,1710889887109,-383.52990047,0.00032876,2]
[319615072,1710889887119,-928.93,0.00032876,2]
[319615073,1710889887130,-500.0,0.00032876,2]
[319615074,1710889887139,-811.39,0.00032876,2]
[319615075,1710889887149,-1038.54,0.00032876,2]
[319615076,1710889887158,-4631.2,0.00032876,2]
[319615077,1710889887168,-500.0,0.00032876,2]
[319615078,1710889887178,-1456.54,0.00032876,2]
[319615079,1710889887188,-871.05,0.00032876,2]
[319615080,1710889887198,-1056.59,0.00032876,2]
[319615081,1710889887208,-537.22,0.00032876,2]
[319615082,1710889887222,-500.0,0.00032876,2]
[319615083,1710889887232,-524.13,0.00032876,2]
[319615084,1710889887241,-288.93094735,0.00032876,2]
[319615085,1710889887251,-2348.88,0.00032876,2]
[319615086,1710889887261,-515.48,0.00032876,2]
[319615087,1710889887271,-500.0,0.00032876,2]
[319615088,1710889887281,-500.0,0.00032876,2]
[319615089,1710889887293,-853.27,0.00032876,2]
[319615090,1710889887304,-1115.49,0.00032876,2]
[319615091,1710889887315,-971.85,0.00032876,2]
[319615092,1710889887325,-543.38,0.00032876,2]
[319615093,1710889887336,-2831.03,0.00032876,2]
[319615094,1710889887346,-1184.24,0.00032876,2]
[319615095,1710889887357,-979.33,0.00032876,2]
[319615096,1710889887367,-1727.5,0.00032876,2]
[319615097,1710889887378,-500.0,0.00032876,2]
[319615098,1710889887389,-500.0,0.00032876,2]
[319615099,1710889887399,-500.0,0.00032876,2]
[319615100,1710889887409,-500.0,0.00032876,2]
[319615101,1710889887419,-522.77,0.00032876,2]
[319615102,1710889887429,-766.46,0.00032876,2]
[319615103,1710889887439,-690.56,0.00032876,2]
[319615104,1710889887449,-500.0,0.00032876,2]
[319615105,1710889887460,-817.88,0.00032876,2]
[319615106,1710889887474,-500.0,0.00032876,2]
[319615107,1710889887485,-4845.95,0.00032876,2]
[319615108,1710889887495,-556.39,0.00032876,2]
[319615109,1710889887505,-4803.55,0.00032876,2]
[319615110,1710889887515,-500.0,0.00032876,2]
[319615111,1710889887524,-500.0,0.00032876,2]
[319615112,1710889887534,-500.0,0.00032876,2]
[319615113,1710889887545,-500.0,0.00032876,2]
[319615114,1710889887554,-34103.85,0.00032876,2]
[319615115,1710889887564,-1080.43,0.00032876,2]
[319615116,1710889887574,-1942.23,0.00032876,2]
[319615117,1710889887584,-3482.12,0.00032876,2]
[319615118,1710889887593,-1812.24,0.00032876,2]
[319615119,1710889887604,-670.6,0.00032876,2]
[319615120,1710889887613,-500.0,0.00032876,2]
[319615121,1710889887623,-600.36,0.00032876,2]
[319615122,1710889887633,-500.0,0.00032876,2]
[319615123,1710889887644,-500.0,0.00032876,2]
[319615124,1710889887654,-500.0,0.00032876,2]
[319615125,1710889887664,-862.6,0.00032876,2]
[319615126,1710889887674,-4330.62,0.00032876,2]
[319615127,1710889887685,-876.81,0.00032876,2]
[319615128,1710889887695,-3516.45,0.00032876,2]
[319615129,1710889887705,-628.68,0.00032876,2]
[319615130,1710889887718,-384.88988745,0.00032876,2]
[319615131,1710889887728,-728.13,0.00032876,2]
[319615132,1710889887738,-500.0,0.00032876,2]
[319615133,1710889887749,-898.81,0.00032876,2]
[319615134,1710889887759,-12216.87,0.00032876,2]
[319615135,1710889887770,-518.77,0.00032876,2]
[319615136,1710889887780,-500.0,0.00032876,2]
[319615137,1710889887791,-2145.43,0.00032876,2]
[319615138,1710889887801,-500.0,0.00032876,2]
[319615139,1710889887811,-535.35,0.00032876,2]
[319615140,1710889887822,-2312.93,0.00032876,2]
[319615141,1710889887833,-500.0,0.00032876,2]
[319615142,1710889887843,-500.0,0.00032876,2]
[319615143,1710889887853,-555.13,0.00032876,2]
[319615144,1710889887865,-500.0,0.00032876,2]
[319615145,1710889887876,-500.0,0.00032876,2]
[319615146,1710889887886,-901.75,0.00032876,2]
[319615147,1710889887896,-2237.89,0.00032876,2]
[319615148,1710889887907,-623.8906215,0.00032876,2]
[319615149,1710889887917,-1754.94,0.00032876,2]
[319615150,1710889887927,-500.0,0.00032876,2]
[319615151,1710889887937,-2222.53,0.00032876,2]
[319615152,1710889887949,-693.88,0.00032876,2]
[319615153,1710889887960,-2179.0,0.00033,120]
[319615154,1710889887974,-500.0,0.00033,3]
[319615155,1710889887984,-500.0,0.0003315,5]
[319615156,1710889887994,-808.57,0.0003315,5]
[319615157,1710889888004,-500.0,0.0003315,5]
[319615158,1710889888014,-739.62,0.0003315,5]
[319615159,1710889888025,-770.01,0.0003315,5]
[319615160,1710889888035,-706.97,0.0003315,5]
[319615161,1710889888046,-260.21044479,0.0003315,5]
[319615162,1710889888056,-500.0,0.0003315,5]
[319615163,1710889888066,-1912.51,0.0003315,5]
[319615164,1710889888076,-599.64831999,0.0003315,5]
[319615165,1710889888085,-1956.9,0.0003315,5]
[319615166,1710889888095,-448.35248859,0.0003315,5]
[319615167,1710889888104,-500.0,0.0003315,5]
[319615168,1710889888114,-625.35,0.0003315,5]
[319615169,1710889888124,-2737.91,0.0003315,5]
[319615170,1710889888133,-480.18459311,0.0003315,5]
[319615171,1710889888143,-727.13,0.0003315,5]
[319615172,1710889888153,-500.0,0.0003315,5]
[319615173,1710889888163,-969.84,0.0003315,5]
[319615174,1710889888173,-500.0,0.0003315,5]
[319615175,1710889888184,-1547.97,0.0003315,5]
[319615176,1710889888195,-500.0,0.0003315,5]
[319615177,1710889888205,-500.0,0.0003315,5]
[319615178,1710889888216,-500.0,0.0003315,5]
[319615179,1710889888227,-500.0,0.0003315,5]
[319615180,1710889888236,-500.0,0.0003315,5]
[319615181,1710889888247,-500.0,0.0003315,5]
[319615182,1710889888257,-500.0,0.0003315,5]
[319615183,1710889888267,-771.88,0.0003315,5]
[319615184,1710889888277,-500.0,0.0003315,5]
[319615185,1710889888286,-500.0,0.0003315,5]
[319615186,1710889888296,-500.0,0.0003315,5]
[319615187,1710889888305,-1734.35,0.0003315,5]
[319615188,1710889888315,-500.0,0.0003315,5]
[319615189,1710889888324,-1362.64,0.0003315,5]
[319615190,1710889888334,-500.0,0.0003315,5]
[319615191,1710889888343,-799.5,0.0003315,5]
[319615192,1710889888354,-500.0,0.0003315,5]
[319615193,1710889888364,-500.0,0.0003315,5]
[319615194,1710889888374,-500.0,0.0003315,5]
[319615195,1710889888384,-506.51,0.0003315,5]
[319615196,1710889888394,-500.0,0.0003315,5]
[319615197,1710889888404,-962.3,0.0003315,5]
[319615198,1710889888415,-500.0,0.0003315,5]
[319615199,1710889888425,-497.64860402,0.0003315,5]
[319615200,1710889888435,-500.0,0.0003315,5]
[319615201,1710889888446,-500.0,0.0003315,5]
[319615202,1710889888456,-738.08,0.0003315,5]
[319615203,1710889888469,-500.0,0.0003315,5]
[319615204,1710889888479,-500.0,0.0003315,5]
[319615205,1710889888488,-500.0,0.0003315,5]
[319615206,1710889888498,-500.0,0.0003315,5]
[319615207,1710889888507,-3065.96,0.0003315,5]
[319615208,1710889888517,-500.0,0.0003315,5]
[319615209,1710889888528,-527.83,0.0003315,5]
[319615210,1710889888538,-1402.94,0.0003315,5]
[319615211,1710889888548,-863.28,0.0003315,5]
[319615212,1710889888558,-509.57,0.0003315,5]
[319615213,1710889888567,-816.49,0.0003315,5]
[319615214,1710889888578,-546.0,0.0003315,5]
[319615215,1710889888588,-500.0,0.0003315,5]
[319615216,1710889888598,-500.0,0.0003315,5]
[319615217,1710889888607,-1467.71,0.0003315,5]
[319615218,1710889888617,-10090.18,0.0003315,5]
[319615219,1710889888627,-500.0,0.0003315,5]
[319615220,1710889888637,-500.0,0.0003315,5]
[319615221,1710889888649,-500.0,0.0003315,5]
[319615222,1710889888660,-2448.69,0.0003315,5]
[319615223,1710889888670,-500.0,0.0003315,5]
[319615224,1710889888680,-1832.0,0.0003315,5]
[319615225,1710889888690,-1702.82,0.0003315,5]
[319615226,1710889888700,-377.11362792,0.0003315,5]
[319615227,1710889888711,-500.0,0.0003315,5]
[319615228,1710889888723,-576.68,0.0003315,5]
[319615229,1710889888733,-500.0,0.0003315,5]
[319615230,1710889888743,-550.72,0.0003315,5]
[319615231,1710889888753,-1410.4,0.0003315,5]
[319615232,1710889888763,-258.62992537,0.0003315,5]
[319615233,1710889888773,-1698.2,0.0003315,5]
[319615234,1710889888783,-566.59,0.0003315,5]
[319615235,1710889888793,-618.74,0.0003315,5]
[319615236,1710889888803,-500.0,0.0003315,5]
[319615237,1710889888813,-500.0,0.0003315,5]
[319615238,1710889888823,-4353.24,0.0003315,5]
[319615239,1710889889044,-500.0,0.0003315,5]
[319615240,1710889889061,-7073.81,0.0003315,5]
[319615241,1710889889070,-500.0,0.0003315,5]
[319615242,1710889889080,-522.69,0.0003315,5]
[319615243,1710889889090,-928.93,0.0003315,5]
[319615244,1710889889100,-500.0,0.0003315,5]
[319615245,1710889889109,-811.39,0.0003315,5]
[319615246,1710889889120,-1038.54,0.0003315,5]
[319615247,1710889889130,-4631.2,0.0003315,5]
[319615248,1710889889139,-196.40915319,0.0003315,5]
[319615249,1710889889149,-1456.54,0.0003315,5]
[319615250,1710889889159,-871.05,0.0003315,5]
[319615251,1710889889168,-1056.59,0.0003315,5]
[319615252,1710889889179,-537.22,0.0003315,5]
[319615253,1710889889189,-500.0,0.0003315,5]
[319615254,1710889889199,-524.13,0.0003315,5]
[319615255,1710889889209,-2348.88,0.0003315,5]
[319615256,1710889889222,-515.48,0.0003315,5]
[319615257,1710889889232,-500.0,0.0003315,5]
[319615258,1710889889241,-500.0,0.0003315,5]
[319615259,1710889889251,-853.27,0.0003315,5]
[319615260,1710889889261,-1115.49,0.0003315,5]
[319615261,1710889889271,-971.85,0.0003315,5]
[319615262,1710889889280,-543.38,0.0003315,5]
[319615263,1710889889289,-2831.03,0.0003315,5]
[319615264,1710889889298,-1184.24,0.0003315,5]
[319615265,1710889889308,-979.33,0.0003315,5]
[319615266,1710889889317,-1727.5,0.0003315,5]
[319615267,1710889889327,-274.65,0.0003315,5]
[319615268,1710889889336,-500.0,0.0003315,5]
[319615269,1710889889346,-500.0,0.0003315,5]
[319615270,1710889889356,-500.0,0.0003315,5]
[319615271,1710889889366,-522.77,0.0003315,5]
[319615272,1710889889375,-766.46,0.0003315,5]
[319615273,1710889889385,-690.56,0.0003315,5]
[319615274,1710889889394,-305.31324974,0.0003315,5]
[319615275,1710889889404,-817.88,0.0003315,5]
[319615276,1710889889414,-500.0,0.0003315,5]
[319615277,1710889889423,-4845.95,0.0003315,5]
[319615278,1710889889433,-556.39,0.0003315,5]
[319615279,1710889889444,-4803.55,0.0003315,5]
[319615280,1710889889453,-500.0,0.0003315,5]
[319615281,1710889889463,-500.0,0.0003315,5]
[319615282,1710889889476,-500.0,0.0003315,5]
[319615283,1710889889486,-272.23059861,0.0003315,5]
[319615284,1710889889495,-34103.85,0.0003315,5]
[319615285,1710889889505,-1942.23,0.0003315,5]
[319615286,1710889889515,-1080.43,0.0003315,5]
[319615287,1710889889524,-3482.12,0.0003315,5]
[319615288,1710889889534,-1812.24,0.0003315,5]
[319615289,1710889889543,-500.0,0.0003315,5]
[319615290,1710889889553,-670.6,0.0003315,5]
[319615291,1710889889563,-600.36,0.0003315,5]
[319615292,1710889889573,-500.0,0.0003315,5]
[319615293,1710889889583,-500.0,0.0003315,5]
[319615294,1710889889593,-194.76807851,0.0003315,5]
[319615295,1710889889603,-862.6,0.0003315,5]
[319615296,1710889889613,-4330.62,0.0003315,5]
[319615297,1710889889624,-876.81,0.0003315,5]
[319615298,1710889889634,-3516.45,0.0003315,5]
[319615299,1710889889645,-628.68,0.0003315,5]
[319615300,1710889889656,-728.13,0.0003315,5]
[319615301,1710889889666,-500.0,0.0003315,5]
[319615302,1710889889676,-898.81,0.0003315,5]
[319615303,1710889889686,-12216.87,0.0003315,5]
[319615304,1710889889696,-518.77,0.0003315,5]
[319615305,1710889889706,-500.0,0.0003315,5]
[319615306,1710889889719,-2145.43,0.0003315,5]
[319615307,1710889889728,-500.0,0.0003315,5]
[319615308,1710889889739,-535.35,0.0003315,5]
[319615309,1710889889748,-2312.93,0.0003315,5]
[319615310,1710889889758,-500.0,0.0003315,5]
[319615311,1710889889767,-500.0,0.0003315,5]
[319615312,1710889889777,-555.13,0.0003315,5]
[319615313,1710889889787,-500.0,0.0003315,5]
[319615314,1710889889796,-500.0,0.0003315,5]
[319615315,1710889889805,-901.75,0.0003315,5]
[319615316,1710889889815,-2237.89,0.0003315,5]
[319615317,1710889889825,-1754.94,0.0003315,5]
[319615318,1710889889834,-500.0,0.0003315,5]
[319615319,1710889889843,-2222.53,0.0003315,5]
[319615320,1710889889852,-693.88,0.0003315,5]
[319615321,1710889889864,-269.0,0.0003323,2]
[319615322,1710889889873,-282.17498118,0.00033423,2]
[319615323,1710889889882,-481.63458191,0.00033424,5]
[319615324,1710889889892,-808.57,0.00033424,5]
[319615325,1710889889902,-376.13967336,0.00033424,5]
[319615326,1710889889912,-739.62,0.00033424,5]
[319615327,1710889889921,-770.01,0.00033424,5]
[319615328,1710889889931,-706.97,0.00033424,5]
[319615329,1710889889942,-500.0,0.00033424,5]
[319615330,1710889889952,-1912.51,0.00033424,5]
[319615331,1710889889961,-1956.9,0.00033424,5]
[319615332,1710889889974,-196.48992736,0.00033424,5]
[319615333,1710889889983,-625.35,0.00033424,5]
[319615334,1710889889992,-2737.91,0.00033424,5]
[319615335,1710889890002,-727.13,0.00033424,5]
[319615336,1710889890012,-500.0,0.00033424,5]
[319615337,1710889890021,-969.84,0.00033424,5]
[319615338,1710889890030,-500.0,0.00033424,5]
[319615339,1710889890040,-1547.97,0.00033424,5]
[319615340,1710889890049,-500.0,0.00033424,5]
[319615341,1710889890059,-509.47651736,0.00033424,5]
[319615342,1710889890069,-500.0,0.00033424,5]
[319615343,1710889890080,-615.41232262,0.00033424,5]
[319615344,1710889890090,-500.0,0.00033424,5]
[319615345,1710889890099,-500.0,0.00033424,5]
[319615346,1710889890109,-500.0,0.00033424,5]
[319615347,1710889890119,-771.88,0.00033424,5]
[319615348,1710889890129,-500.0,0.00033424,5]
[319615349,1710889890138,-500.0,0.00033424,5]
[319615350,1710889890148,-500.0,0.00033424,5]
[319615351,1710889890158,-1734.35,0.00033424,5]
[319615352,1710889890168,-500.0,0.00033424,5]
[319615353,1710889890178,-1362.64,0.00033424,5]
[319615354,1710889890187,-500.0,0.00033424,5]
[319615355,1710889890197,-799.5,0.00033424,5]
[319615356,1710889890207,-500.0,0.00033424,5]
[319615357,1710889890218,-500.0,0.00033424,5]
[319615358,1710889890228,-500.0,0.00033424,5]
[319615359,1710889890237,-506.51,0.00033424,5]
[319615360,1710889890247,-407.59262831,0.00033424,5]
[319615361,1710889890257,-962.3,0.00033424,5]
[319615362,1710889890267,-500.0,0.00033424,5]
[319615363,1710889890277,-500.0,0.00033424,5]
[319615364,1710889890286,-500.0,0.00033424,5]
[319615365,1710889890295,-738.08,0.00033424,5]
[319615366,1710889890305,-500.0,0.00033424,5]
[319615367,1710889890314,-500.0,0.00033424,5]
[319615368,1710889890324,-500.0,0.00033424,5]
[319615369,1710889890333,-500.0,0.00033424,5]
[319615370,1710889890342,-3065.96,0.00033424,5]
[319615371,1710889890351,-500.0,0.00033424,5]